[Event "World Senior chT-65 2019"]
[Site "Rhodes"]
[Date "2019.04.16"]
[Round "1.21"]
[White "Bellin, Robert"]
[Black "Andersson, Kaj"]
[Result "1-0"]
[ECO "D45"]
[WhiteElo "2315"]
[BlackElo "2030"]
[Annotator "NA RC"]
[PlyCount "109"]
[EventDate "2019.04.16"]
[EventType "team-tourn"]
[EventCountry "GRE"]
[SourceTitle "playchess.com"]
[Source "ChessBase"]
[SourceQuality "1"]
[WhiteTeam "England"]
[BlackTeam "Sweden"]
[WhiteTeamCountry "ENG"]
[BlackTeamCountry "SWE"]
[TimeControl "40/5400+30:1800+30"]

1. Nf3 {[%emt 0:00:00]} Nf6 {[%emt 0:00:00]} 2. c4 {[%emt 0:00:41]} c6 {[%emt 0:00:17]} 3. Nc3 {[%emt 0:03:21]} d5 {[%emt 0:00:19]} 4. e3 {[%emt 0:00:06]} e6 {[%emt 0:01:59]} 5. b3 {[%emt 0:00:42]} Bd6 {[%emt 0:01:04]} 6. Bb2 {[%emt 0:00:11]} O-O {[%emt 0:00:15]} 7. Qc2 {[%emt 0:02:10]} Nbd7 {[%emt 0:02:25]} 8. d4 {[%emt 0:04:30]} Re8 {[%emt 0:01:44]} 9. Be2 {[%emt 0:05:25]} e5 {[%emt 0:05:56]} 10. cxd5 {[%emt 0:02:49]} Nxd5 {[%emt 0:03:00]} 11. Nxd5 {[%emt 0:01:32]} cxd5 {[%emt 0:00:08]} 12. dxe5 {[%emt 0:00:14]} Nxe5 {[%emt 0:00:37]} 13. O-O {[%emt 0:05:00]} Bd7 {[%emt 0:03:46]} 14. Rfd1 {[%emt 0:08:08]} Bc6 {[%emt 0:06:24]} 15. Nxe5 {[%emt 0:12:56]} Bxe5 {[%emt 0:00:13]} 16. Bxe5 {[%emt 0:00:18]} Rxe5 {[%emt 0:00:04]} 17. Bf3 {[%emt 0:00:06]} Qf6 {[%emt 0:04:29]} 18. Qc3 {[%emt 0:03:25]} Rae8 {[%emt 0:03:12]} 19. Qd4 {[%emt 0:00:27]} h5 {[%emt 0:04:31]} 20. Rac1 {[%emt 0:04:19]} h4 {[%emt 0:06:13]} 21. h3 {[%emt 0:01:19]} Qg5 {[%emt 0:06:16]} 22. Rc5 {[%emt 0:08:47]} R8e6 {[%emt 0:05:32]} 23. b4 {[%emt 0:05:38]} Rg6 {[%emt 0:07:31]} 24. b5 {[%emt 0:16:06]} Bd7 {[%emt 0:01:28]} 25. Rxd5 {[%emt 0:04:47]} Rxd5 {[%emt 0:03:46]} 26. Qxd5 {[%emt 0:00:09]} Bxh3 {[%emt 0:01:50]} 27. Qd8+ {[%emt 0:03:54]} Kh7 {[%emt 0:02:48]} 28. Qxg5 {[%emt 0:00:41]} Rxg5 {[%emt 0:00:02]} 29. Rd5 {[%emt 0:00:04]} Rxd5 {[%emt 0:02:33]} 30. Bxd5 {[%emt 0:00:01]} Be6 {[%emt 0:06:09]} 31. Bxe6 {[%emt 0:00:28]} fxe6 {[%emt 0:00:01]} 32. Kh2 {[%emt 0:00:04]} Kg6 {[%emt 0:06:36]} 33. Kh3 {[%emt 0:00:10]} Kg5 {[%emt 0:01:53]} 34. f4+ {[%emt 0:02:54]} Kf5 {[%emt 0:07:00]} 35. Kxh4 {[%emt 0:00:06]} Ke4 {[%emt 0:00:06]} 36. Kg5 {[%emt 0:04:52]} Kxe3 {[%emt 0:00:07]} 37. g4 {[%emt 0:00:01]} Ke4 {[%emt 0:00:47]} 38. f5 {[%emt 0:01:10]} exf5 {[%emt 0:00:24]} 39. gxf5 {[%emt 0:00:02]} a5 {[%emt 0:05:59]} 40. b6 {[%emt 0:00:00]} a4 {[%emt 0:00:00]} 41. a3 {[%emt 0:08:18]} Ke5 {[%emt 0:04:14]} 42. Kg6 {[%emt 0:00:13]} Ke4 {[%emt 0:00:16]} 43. Kxg7 {[%emt 0:00:45]} Kxf5 {[%emt 0:00:01]} 44. Kf7 {[%emt 0:00:05]} Ke5 {[%emt 0:00:49]} 45. Ke7 {[%emt 0:00:04]} Kd5 {[%emt 0:00:41]} 46. Kd7 {[%emt 0:00:04]} Kc4 {[%emt 0:00:08]} 47. Kc7 {[%emt 0:00:05]} Kb3 {[%emt 0:00:06]} 48. Kxb7 {[%emt 0:00:03]} Kxa3 {[%emt 0:00:09]} 49. Kc6 {[%emt 0:00:33]} Kb2 {[%emt 0:02:07]} 50. b7 {[%emt 0:00:06]} a3 {[%emt 0:00:07]} 51. b8=Q+ {[%emt 0:00:07]} Ka1 {[%emt 0:00:11]} 52. Qe5+ {[%emt 0:00:16]} Kb1 {[%emt 0:00:14]} 53. Qe1+ {[%emt 0:00:10]} Kb2 {[%emt 0:02:10]} 54. Qb4+ {[%emt 0:00:08]} Ka2 {[%emt 0:00:08]} 55. Kd5 {[%emt 0:00:06]} 1-0

[Event "World Senior chT-65 2019"]
[Site "Rhodes"]
[Date "2019.04.16"]
[Round "1.22"]
[White "Gustavsson, Sture"]
[Black "Povah, Nigel E"]
[Result "0-1"]
[ECO "E14"]
[WhiteElo "1976"]
[BlackElo "2319"]
[Annotator "NA RC"]
[PlyCount "94"]
[EventDate "2019.04.16"]
[EventType "team-tourn"]
[EventCountry "GRE"]
[SourceTitle "playchess.com"]
[Source "ChessBase"]
[SourceQuality "1"]
[WhiteTeam "Sweden"]
[BlackTeam "England"]
[WhiteTeamCountry "SWE"]
[BlackTeamCountry "ENG"]
[TimeControl "40/5400+30:1800+30"]

1. d4 {[%emt 0:00:00]} Nf6 {[%emt 0:00:09]} 2. Nf3 {[%emt 0:00:00]} e6 {[%emt 0:00:21]} 3. e3 {[%emt 0:00:02]} c5 {[%emt 0:00:52]} 4. Bd3 {[%emt 0:00:48]} b6 {[%emt 0:01:13]} 5. O-O {[%emt 0:00:28]} Bb7 {[%emt 0:00:21]} 6. Nbd2 {[%emt 0:01:33]} Be7 {[%emt 0:02:40]} 7. b3 {[%emt 0:00:31]} O-O {[%emt 0:02:11]} 8. Bb2 {[%emt 0:01:15]} d6 {[%emt 0:01:24]} 9. c4 {[%emt 0:01:57]} Nbd7 {[%emt 0:01:06]} 10. Qe2 {[%emt 0:02:58]} Re8 {[%emt 0:07:06]} 11. Rac1 {[%emt 0:04:15]} Bf8 {[%emt 0:05:15]} 12. Rfd1 {[%emt 0:07:40]} Qc7 {[%emt 0:01:50]} 13. e4 {[%emt 0:06:08]} cxd4 {[%emt 0:04:58]} 14. Nxd4 {[%emt 0:00:21]} a6 {[%emt 0:00:48]} 15. Bb1 {[%emt 0:09:41]} Rad8 {[%emt 0:02:17]} 16. a3 {[%emt 0:05:28]} Qb8 {[%emt 0:04:33]} 17. Re1 {[%emt 0:05:11]} g6 {[%emt 0:02:53]} 18. b4 {[%emt 0:08:39]} Rc8 {[%emt 0:13:38]} 19. Qd3 {[%emt 0:05:45]} Bg7 {[%emt 0:03:23]} 20. h3 {[%emt 0:02:50]} Rcd8 {[%emt 0:07:32]} 21. Qc2 {[%emt 0:01:41]} Qa8 {[%emt 0:00:59]} 22. f3 {[%emt 0:01:37]} Rc8 {[%emt 0:03:40]} 23. Qd3 {[%emt 0:02:05]} Qb8 {[%emt 0:00:58]} 24. N4b3 {[%emt 0:02:18]} Red8 {[%emt 0:03:58]} 25. Qe2 {[%emt 0:03:26]} Bc6 {[%emt 0:04:21]} 26. Nd4 {[%emt 0:03:04]} Ba8 {[%emt 0:01:45]} 27. Nf1 {[%emt 0:03:22]} Nh5 {[%emt 0:03:37]} 28. Qd2 {[%emt 0:05:56]} e5 {[%emt 0:06:26]} 29. Ne2 {[%emt 0:01:30]} Nf8 {[%emt 0:00:55]} 30. g4 {[%emt 0:02:16]} Nf4 {[%emt 0:01:18]} 31. Nxf4 {[%emt 0:00:27]} Bh6 {[%emt 0:00:08]} 32. Qf2 {[%emt 0:02:03]} Bxf4 {[%emt 0:00:16]} 33. Rc2 {[%emt 0:00:32]} Ne6 {[%emt 0:04:55]} 34. Rd1 {[%emt 0:01:36]} Bc6 {[%emt 0:01:15]} 35. Rd3 {[%emt 0:01:22]} Ba4 {[%emt 0:01:57]} 36. Rcc3 {[%emt 0:00:21]} b5 {[%emt 0:01:14]} 37. cxb5 {[%emt 0:01:24]} Bxb5 {[%emt 0:00:33]} 38. Rxc8 {[%emt 0:00:24]} Rxc8 {[%emt 0:00:44]} 39. Rc3 {[%emt 0:01:46]} Rxc3 {[%emt 0:01:40]} 40. Bxc3 {[%emt 0:00:00]} Qc7 {[%emt 0:00:00]} 41. Bd2 {[%emt 0:04:28]} Qc4 {[%emt 0:05:00]} 42. Ne3 {[%emt 0:07:29]} Qb3 {[%emt 0:04:00]} 43. Bc2 {[%emt 0:02:48]} Qxa3 {[%emt 0:00:10]} 44. Nd5 {[%emt 0:00:22]} Bxd2 {[%emt 0:02:38]} 45. Qxd2 {[%emt 0:00:14]} Qxf3 {[%emt 0:00:28]} 46. Qh6 {[%emt 0:02:00]} Qf1+ {[%emt 0:00:36]} 47. Kh2 {[%emt 0:00:09]} Qf2+ {[%emt 0:00:13]} 0-1

[Event "World Senior chT-65 2019"]
[Site "Rhodes"]
[Date "2019.04.16"]
[Round "1.23"]
[White "Snape, Ian L"]
[Black "Lundgren, Ulf"]
[Result "1-0"]
[ECO "D06"]
[WhiteElo "2154"]
[BlackElo "1964"]
[Annotator "NA"]
[PlyCount "107"]
[EventDate "2019.04.16"]
[EventType "team-tourn"]
[EventCountry "GRE"]
[SourceTitle "playchess.com"]
[Source "ChessBase"]
[SourceQuality "1"]
[WhiteTeam "England"]
[BlackTeam "Sweden"]
[WhiteTeamCountry "ENG"]
[BlackTeamCountry "SWE"]
[TimeControl "40/5400+30:1800+30"]

1. c4 {[%emt 0:00:00]} Nf6 {[%emt 0:00:00]} 2. d4 {[%emt 0:00:00]} d5 {[%emt 0:00:19]} 3. cxd5 {[%emt 0:00:00]} Nxd5 {[%emt 0:00:06]} 4. e4 {[%emt 0:00:12]} Nb6 {[%emt 0:00:06]} 5. Bd3 {[%emt 0:01:34]} e6 {[%emt 0:00:32]} 6. Be3 {[%emt 0:01:56]} Be7 {[%emt 0:05:37]} 7. Nf3 {[%emt 0:01:14]} O-O {[%emt 0:00:34]} 8. O-O {[%emt 0:00:22]} Bd7 {[%emt 0:07:36]} 9. Nc3 {[%emt 0:02:15]} Be8 {[%emt 0:00:56]} 10. Ne5 {[%emt 0:09:11]} N8d7 {[%emt 0:02:28]} 11. f4 {[%emt 0:04:47]} c5 {[%emt 0:01:01]} 12. Nxd7 {[%emt 0:01:34]} Nxd7 {[%emt 0:00:57]} 13. d5 {[%emt 0:04:29]} e5 {[%emt 0:02:52]} 14. Bb5 {[%emt 0:02:40]} Qc7 {[%emt 0:12:09]} 15. d6 {[%emt 0:31:33]} Bxd6 {[%emt 0:10:43]} 16. Nd5 {[%emt 0:00:06]} Qd8 {[%emt 0:00:12]} 17. f5 {[%emt 0:02:52]} Nf6 {[%emt 0:02:26]} 18. Nxf6+ {[%emt 0:01:10]} Qxf6 {[%emt 0:00:24]} 19. Qg4 {[%emt 0:00:33]} Be7 {[%emt 0:00:20]} 20. Bc4 {[%emt 0:03:29]} Bc6 {[%emt 0:02:08]} 21. Bd5 {[%emt 0:04:47]} Rfd8 {[%emt 0:06:44]} 22. Bxc6 {[%emt 0:00:54]} Qxc6 {[%emt 0:00:56]} 23. Rf3 {[%emt 0:00:22]} Qf6 {[%emt 0:14:21]} 24. Rh3 {[%emt 0:02:40]} g6 {[%emt 0:00:37]} 25. Rf1 {[%emt 0:02:05]} c4 {[%emt 0:02:30]} 26. fxg6 {[%emt 0:01:09]} Qxg6 {[%emt 0:02:43]} 27. Qf3 {[%emt 0:00:21]} Kh8 {[%emt 0:01:10]} 28. Rg3 {[%emt 0:03:38]} Qe6 {[%emt 0:00:29]} 29. Qxf7 {[%emt 0:01:23]} Qxf7 {[%emt 0:00:20]} 30. Rxf7 {[%emt 0:00:05]} Rd1+ {[%emt 0:00:05]} 31. Kf2 {[%emt 0:00:09]} Bh4 {[%emt 0:00:17]} 32. Ke2 {[%emt 0:01:31]} Bxg3 {[%emt 0:00:57]} 33. Kxd1 {[%emt 0:00:08]} Bxh2 {[%emt 0:01:01]} 34. Bg5 {[%emt 0:01:07]} b5 {[%emt 0:01:26]} 35. Bf6+ {[%emt 0:00:10]} Kg8 {[%emt 0:00:32]} 36. Rg7+ {[%emt 0:00:03]} Kf8 {[%emt 0:00:47]} 37. Rxh7 {[%emt 0:00:07]} Bg1 {[%emt 0:01:27]} 38. Rh8+ {[%emt 0:00:31]} Kf7 {[%emt 0:00:06]} 39. Rxa8 {[%emt 0:00:04]} Kxf6 {[%emt 0:00:05]} 40. Rb8 {[%emt 0:00:00]} Bb6 {[%emt 0:00:00]} 41. Ke2 {[%emt 0:02:11]} Ke7 {[%emt 0:04:03]} 42. g4 {[%emt 0:00:34]} Kf6 {[%emt 0:00:17]} 43. Kf3 {[%emt 0:01:32]} Kf7 {[%emt 0:00:36]} 44. g5 {[%emt 0:00:18]} Kg6 {[%emt 0:00:50]} 45. Kg4 {[%emt 0:00:08]} b4 {[%emt 0:03:08]} 46. Rg8+ {[%emt 0:00:16]} Kf7 {[%emt 0:00:12]} 47. Rc8 {[%emt 0:00:06]} b3 {[%emt 0:00:46]} 48. axb3 {[%emt 0:00:36]} cxb3 {[%emt 0:00:04]} 49. Rc3 {[%emt 0:00:06]} Kg6 {[%emt 0:00:14]} 50. Rxb3 {[%emt 0:00:09]} Bd8 {[%emt 0:01:22]} 51. Rb8 {[%emt 0:01:00]} Bb6 {[%emt 0:01:19]} 52. Rc8 {[%emt 0:00:16]} Bd4 {[%emt 0:00:21]} 53. b4 {[%emt 0:00:50]} Be3 {[%emt 0:00:49]} 54. Rc6+ {[%emt 0:00:08]} 1-0

[Event "World Senior chT-65 2019"]
[Site "Rhodes"]
[Date "2019.04.16"]
[Round "1.24"]
[White "Andersson, Sven-Olof"]
[Black "Quinn, John M"]
[Result "0-1"]
[ECO "A48"]
[WhiteElo "1904"]
[BlackElo "2140"]
[Annotator "NA"]
[PlyCount "50"]
[EventDate "2019.04.16"]
[EventType "team-tourn"]
[EventCountry "GRE"]
[SourceTitle "playchess.com"]
[Source "ChessBase"]
[SourceQuality "1"]
[WhiteTeam "Sweden"]
[BlackTeam "England"]
[WhiteTeamCountry "SWE"]
[BlackTeamCountry "ENG"]
[TimeControl "40/5400+30:1800+30"]

1. d4 {[%emt 0:00:00]} Nf6 {[%emt 0:00:00]} 2. Nf3 {[%emt 0:00:00]} g6 {[%emt 0:00:00]} 3. Bf4 {[%emt 0:00:40]} Bg7 {[%emt 0:00:38]} 4. e3 {[%emt 0:00:47]} O-O {[%emt 0:02:31]} 5. Bd3 {[%emt 0:02:09]} d6 {[%emt 0:05:14]} 6. Nbd2 {[%emt 0:01:52]} c5 {[%emt 0:06:13]} 7. c3 {[%emt 0:02:54]} Nc6 {[%emt 0:02:58]} 8. Qc2 {[%emt 0:07:26]} cxd4 {[%emt 0:03:58]} 9. exd4 {[%emt 0:01:25]} e5 {[%emt 0:01:25]} 10. dxe5 {[%emt 0:01:11]} dxe5 {[%emt 0:03:29]} 11. Bg5 {[%emt 0:03:29]} Qc7 {[%emt 0:00:46]} 12. Bxf6 {[%emt 0:05:09]} Bxf6 {[%emt 0:00:07]} 13. Ne4 {[%emt 0:00:19]} Bg7 {[%emt 0:02:17]} 14. h4 {[%emt 0:12:36]} Bf5 {[%emt 0:13:31]} 15. h5 {[%emt 0:07:51]} Qe7 {[%emt 0:10:25]} 16. hxg6 {[%emt 0:03:25]} hxg6 {[%emt 0:00:40]} 17. Kf1 {[%emt 0:09:56]} Rac8 {[%emt 0:03:07]} 18. Qe2 {[%emt 0:02:14]} Rfd8 {[%emt 0:02:31]} 19. Nh4 {[%emt 0:10:21]} Be6 {[%emt 0:01:53]} 20. Qe3 {[%emt 0:14:10]} Nb4 {[%emt 0:05:47]} 21. Nc5 {[%emt 0:10:14]} Nxd3 {[%emt 0:04:19]} 22. Nxd3 {[%emt 0:00:13]} Rxd3 {[%emt 0:00:44]} 23. Qxd3 {[%emt 0:00:22]} Bc4 {[%emt 0:00:06]} 24. Rd1 {[%emt 0:00:49]} Bxd3+ {[%emt 0:02:14]} 25. Rxd3 {[%emt 0:00:08]} Rd8 {[%emt 0:01:06]} 0-1

[Event "World Senior chT-65 2019"]
[Site "Rhodes"]
[Date "2019.04.16"]
[Round "1.26"]
[White "Karasev, Vladimir I"]
[Black "White, Alastair F"]
[Result "1-0"]
[ECO "A22"]
[WhiteElo "2281"]
[BlackElo "2108"]
[Annotator "NA"]
[PlyCount "63"]
[EventDate "2019.04.16"]
[EventType "team-tourn"]
[EventCountry "GRE"]
[SourceTitle "playchess.com"]
[Source "ChessBase"]
[SourceQuality "1"]
[WhiteTeam "Russia"]
[BlackTeam "Scotland"]
[WhiteTeamCountry "RUS"]
[BlackTeamCountry "SCO"]
[TimeControl "40/5400+30:1800+30"]

1. c4 {[%emt 0:00:00]} e5 {[%emt 0:00:00]} 2. Nc3 {[%emt 0:00:06]} Nf6 {[%emt 0:00:06]} 3. g3 {[%emt 0:00:58]} d5 {[%emt 0:00:27]} 4. cxd5 {[%emt 0:00:08]} Nxd5 {[%emt 0:00:12]} 5. Bg2 {[%emt 0:00:13]} Nxc3 {[%emt 0:00:23]} 6. bxc3 {[%emt 0:00:13]} Bd6 {[%emt 0:01:01]} 7. Nf3 {[%emt 0:02:10]} Nd7 {[%emt 0:01:07]} 8. O-O {[%emt 0:01:01]} O-O {[%emt 0:00:32]} 9. d4 {[%emt 0:01:06]} Qe7 {[%emt 0:03:29]} 10. Bg5 {[%emt 0:09:39]} Qe6 {[%emt 0:03:12]} 11. Qb3 {[%emt 0:03:18]} Re8 {[%emt 0:05:22]} 12. Qxe6 {[%emt 0:14:30]} Rxe6 {[%emt 0:02:09]} 13. Rab1 {[%emt 0:07:17]} c5 {[%emt 0:23:34]} 14. Be3 {[%emt 0:07:39]} h6 {[%emt 0:03:52]} 15. dxe5 {[%emt 0:06:57]} Nxe5 {[%emt 0:00:11]} 16. Nxe5 {[%emt 0:00:11]} Bxe5 {[%emt 0:00:40]} 17. Rfd1 {[%emt 0:04:43]} Bxc3 {[%emt 0:05:38]} 18. Rd8+ {[%emt 0:00:51]} Kh7 {[%emt 0:00:10]} 19. Bxc5 {[%emt 0:06:45]} Bf6 {[%emt 0:05:56]} 20. Rf8 {[%emt 0:00:49]} Be7 {[%emt 0:00:19]} 21. Bxe7 {[%emt 0:00:16]} Rxe7 {[%emt 0:00:07]} 22. Rc1 {[%emt 0:00:06]} Rxe2 {[%emt 0:02:27]} 23. Rfxc8 {[%emt 0:04:22]} Rxc8 {[%emt 0:00:09]} 24. Rxc8 {[%emt 0:00:02]} Rxa2 {[%emt 0:01:00]} 25. Bxb7 {[%emt 0:00:39]} f5 {[%emt 0:06:04]} 26. Bd5 {[%emt 0:00:42]} Ra1+ {[%emt 0:00:11]} 27. Kg2 {[%emt 0:00:08]} g5 {[%emt 0:03:05]} 28. Rc6 {[%emt 0:01:41]} a5 {[%emt 0:01:28]} 29. Rf6 {[%emt 0:01:11]} a4 {[%emt 0:02:04]} 30. Rxf5 {[%emt 0:00:07]} a3 {[%emt 0:01:13]} 31. Rf3 {[%emt 0:02:04]} Rd1 {[%emt 0:01:09]} 32. Be4+ {[%emt 0:01:27]} 1-0

[Event "World Senior chT-65 2019"]
[Site "Rhodes"]
[Date "2019.04.16"]
[Round "1.27"]
[White "Bhopal, Raj"]
[Black "Shushpanov, Vladimir"]
[Result "1-0"]
[ECO "B28"]
[WhiteElo "1900"]
[BlackElo "2180"]
[Annotator "NA"]
[PlyCount "61"]
[EventDate "2019.04.16"]
[EventType "team-tourn"]
[EventCountry "GRE"]
[SourceTitle "playchess.com"]
[Source "ChessBase"]
[SourceQuality "1"]
[WhiteTeam "Scotland"]
[BlackTeam "Russia"]
[WhiteTeamCountry "SCO"]
[BlackTeamCountry "RUS"]
[TimeControl "40/5400+30:1800+30"]

1. e4 {[%emt 0:00:00]} c5 {[%emt 0:00:00]} 2. Nf3 {[%emt 0:00:00]} a6 {[%emt 0:00:02]} 3. a4 {[%emt 0:01:18]} Nc6 {[%emt 0:00:29]} 4. Nc3 {[%emt 0:02:39]} g6 {[%emt 0:01:00]} 5. Bc4 {[%emt 0:01:55]} Bg7 {[%emt 0:00:26]} 6. O-O {[%emt 0:00:37]} d6 {[%emt 0:00:52]} 7. h3 {[%emt 0:00:45]} Nf6 {[%emt 0:00:18]} 8. d3 {[%emt 0:01:44]} O-O {[%emt 0:00:27]} 9. Be3 {[%emt 0:02:50]} Bd7 {[%emt 0:01:47]} 10. Qd2 {[%emt 0:03:29]} Rc8 {[%emt 0:04:00]} 11. Bh6 {[%emt 0:06:03]} Nd4 {[%emt 0:01:58]} 12. Nxd4 {[%emt 0:09:09]} cxd4 {[%emt 0:00:24]} 13. Ne2 {[%emt 0:01:27]} Nxe4 {[%emt 0:04:16]} 14. Bxf7+ {[%emt 0:12:17]} Rxf7 {[%emt 0:00:31]} 15. dxe4 {[%emt 0:01:38]} Bxh6 {[%emt 0:00:41]} 16. Qxh6 {[%emt 0:00:06]} Rxc2 {[%emt 0:00:21]} 17. Nxd4 {[%emt 0:00:46]} Rxb2 {[%emt 0:00:58]} 18. Nf3 {[%emt 0:04:27]} Qf8 {[%emt 0:19:45]} 19. Qc1 {[%emt 0:06:53]} Rb4 {[%emt 0:03:32]} 20. Qc3 {[%emt 0:04:05]} a5 {[%emt 0:05:08]} 21. Ng5 {[%emt 0:01:27]} Rf4 {[%emt 0:06:25]} 22. Qc7 {[%emt 0:06:18]} h6 {[%emt 0:08:46]} 23. Qxa5 {[%emt 0:03:43]} Rd4 {[%emt 0:01:41]} 24. Qc3 {[%emt 0:03:13]} Qf6 {[%emt 0:03:19]} 25. g3 {[%emt 0:04:34]} Rxf2 {[%emt 0:00:42]} 26. Qb3+ {[%emt 0:02:07]} d5 {[%emt 0:01:45]} 27. Rxf2 {[%emt 0:01:09]} Qxg5 {[%emt 0:00:07]} 28. Raf1 {[%emt 0:01:56]} Be6 {[%emt 0:03:20]} 29. Qf3 {[%emt 0:01:18]} Kh8 {[%emt 0:04:41]} 30. Qf8+ {[%emt 0:04:15]} Bg8 {[%emt 0:00:12]} 31. Qxg8+ {[%emt 0:00:32]} 1-0

[Event "World Senior chT-65 2019"]
[Site "Rhodes"]
[Date "2019.04.16"]
[Round "1.28"]
[White "Blechzin, Igor"]
[Black "Dawson, Alastair"]
[Result "1-0"]
[ECO "A30"]
[WhiteElo "2210"]
[BlackElo "1817"]
[Annotator "NA"]
[PlyCount "70"]
[EventDate "2019.04.16"]
[EventType "team-tourn"]
[EventCountry "GRE"]
[SourceTitle "playchess.com"]
[Source "ChessBase"]
[SourceQuality "1"]
[WhiteTeam "Russia"]
[BlackTeam "Scotland"]
[WhiteTeamCountry "RUS"]
[BlackTeamCountry "SCO"]
[TimeControl "40/5400+30:1800+30"]

1. c4 {[%emt 0:00:00]} e6 {[%emt 0:00:00]} 2. Nf3 {[%emt 0:00:15]} Nf6 {[%emt 0:00:15]} 3. g3 {[%emt 0:00:20]} b6 {[%emt 0:06:51]} 4. Bg2 {[%emt 0:00:30]} Bb7 {[%emt 0:00:05]} 5. O-O {[%emt 0:00:26]} Be7 {[%emt 0:00:47]} 6. b3 {[%emt 0:01:26]} O-O {[%emt 0:01:02]} 7. Bb2 {[%emt 0:00:06]} c5 {[%emt 0:01:32]} 8. d4 {[%emt 0:04:23]} d6 {[%emt 0:03:08]} 9. Nc3 {[%emt 0:04:35]} a6 {[%emt 0:05:01]} 10. d5 {[%emt 0:04:47]} e5 {[%emt 0:04:30]} 11. e4 {[%emt 0:06:12]} b5 {[%emt 0:04:55]} 12. Ne1 {[%emt 0:04:03]} bxc4 {[%emt 0:02:32]} 13. bxc4 {[%emt 0:00:03]} Nbd7 {[%emt 0:06:36]} 14. Nc2 {[%emt 0:00:54]} Nb6 {[%emt 0:03:49]} 15. Ne3 {[%emt 0:00:09]} Bc8 {[%emt 0:07:09]} 16. a4 {[%emt 0:05:40]} a5 {[%emt 0:02:27]} 17. Nb5 {[%emt 0:00:53]} Nfd7 {[%emt 0:06:31]} 18. Bc3 {[%emt 0:01:39]} Nb8 {[%emt 0:15:13]} 19. Qd2 {[%emt 0:04:05]} N6d7 {[%emt 0:01:39]} 20. Nf5 {[%emt 0:01:43]} Ra6 {[%emt 0:00:26]} 21. Bxa5 {[%emt 0:04:46]} Nb6 {[%emt 0:07:38]} 22. Bxb6 {[%emt 0:05:50]} Rxb6 {[%emt 0:00:09]} 23. Nxe7+ {[%emt 0:02:02]} Qxe7 {[%emt 0:00:11]} 24. Rfb1 {[%emt 0:00:37]} Na6 {[%emt 0:02:23]} 25. a5 {[%emt 0:06:30]} Rb8 {[%emt 0:00:33]} 26. Nc3 {[%emt 0:01:23]} Nb4 {[%emt 0:02:49]} 27. Na2 {[%emt 0:02:08]} Na6 {[%emt 0:01:54]} 28. Rb6 {[%emt 0:02:03]} Qc7 {[%emt 0:00:37]} 29. Rab1 {[%emt 0:01:02]} Rxb6 {[%emt 0:01:39]} 30. axb6 {[%emt 0:03:26]} Qb7 {[%emt 0:01:39]} 31. Qa5 {[%emt 0:00:43]} Bd7 {[%emt 0:00:39]} 32. Nc3 {[%emt 0:11:19]} Ra8 {[%emt 0:00:44]} 33. Nb5 {[%emt 0:06:30]} Nb4 {[%emt 0:00:19]} 34. Nxd6 {[%emt 0:00:34]} Rxa5 {[%emt 0:00:19]} 35. Nxb7 {[%emt 0:00:05]} Ra8 {[%emt 0:03:19]} 1-0

[Event "World Senior chT-65 2019"]
[Site "Rhodes"]
[Date "2019.04.16"]
[Round "1.29"]
[White "Rantanen, Yrjo A."]
[Black "Baruch, Andrew J D"]
[Result "1-0"]
[ECO "B06"]
[WhiteElo "2283"]
[BlackElo "2039"]
[Annotator "NA"]
[PlyCount "88"]
[EventDate "2019.04.16"]
[EventType "team-tourn"]
[EventCountry "GRE"]
[SourceTitle "playchess.com"]
[Source "ChessBase"]
[SourceQuality "1"]
[WhiteTeam "Finland"]
[BlackTeam "England"]
[WhiteTeamCountry "FIN"]
[BlackTeamCountry "ENG"]
[TimeControl "40/5400+30:1800+30"]

1. e4 {[%emt 0:00:00]} d6 {[%emt 0:00:00]} 2. d4 {[%emt 0:00:00]} g6 {[%emt 0:00:00]} 3. Nc3 {[%emt 0:00:05]} Bg7 {[%emt 0:00:00]} 4. Be3 {[%emt 0:00:13]} a6 {[%emt 0:00:02]} 5. h4 {[%emt 0:00:22]} b5 {[%emt 0:02:52]} 6. h5 {[%emt 0:02:18]} Bb7 {[%emt 0:02:52]} 7. h6 {[%emt 0:04:09]} Bf6 {[%emt 0:00:09]} 8. Qd2 {[%emt 0:09:51]} Nd7 {[%emt 0:02:03]} 9. f3 {[%emt 0:03:35]} e6 {[%emt 0:04:09]} 10. O-O-O {[%emt 0:05:23]} Ne7 {[%emt 0:00:32]} 11. g4 {[%emt 0:10:10]} O-O {[%emt 0:00:10]} 12. Nce2 {[%emt 0:00:56]} Nc8 {[%emt 0:08:28]} 13. Ng3 {[%emt 0:03:27]} Ncb6 {[%emt 0:07:51]} 14. b3 {[%emt 0:04:19]} d5 {[%emt 0:12:23]} 15. e5 {[%emt 0:02:36]} Be7 {[%emt 0:00:09]} 16. f4 {[%emt 0:00:24]} c5 {[%emt 0:00:19]} 17. Nf3 {[%emt 0:00:25]} c4 {[%emt 0:00:22]} 18. f5 {[%emt 0:03:00]} a5 {[%emt 0:06:16]} 19. Kb1 {[%emt 0:04:30]} Bb4 {[%emt 0:00:35]} 20. c3 {[%emt 0:14:45]} Ba3 {[%emt 0:00:30]} 21. Bg5 {[%emt 0:00:36]} Qc7 {[%emt 0:05:12]} 22. Ne1 {[%emt 0:02:36]} Rfc8 {[%emt 0:04:56]} 23. Nc2 {[%emt 0:05:19]} Bf8 {[%emt 0:01:07]} 24. b4 {[%emt 0:00:27]} axb4 {[%emt 0:00:53]} 25. cxb4 {[%emt 0:00:47]} c3 {[%emt 0:02:44]} 26. Qf2 {[%emt 0:00:42]} Nc4 {[%emt 0:00:18]} 27. Bc1 {[%emt 0:00:50]} Ra4 {[%emt 0:07:42]} 28. a3 {[%emt 0:01:21]} Rca8 {[%emt 0:00:13]} 29. fxe6 {[%emt 0:04:53]} fxe6 {[%emt 0:00:19]} 30. Bd3 {[%emt 0:01:20]} Be7 {[%emt 0:10:46]} 31. Rhf1 {[%emt 0:00:53]} Rf8 {[%emt 0:00:06]} 32. Qe2 {[%emt 0:00:13]} Raa8 {[%emt 0:01:34]} 33. Rxf8+ {[%emt 0:04:35]} Rxf8 {[%emt 0:00:23]} 34. Rf1 {[%emt 0:00:04]} Ndb6 {[%emt 0:00:32]} 35. g5 {[%emt 0:01:53]} Rxf1 {[%emt 0:03:51]} 36. Nxf1 {[%emt 0:00:22]} Qd8 {[%emt 0:00:13]} 37. Qg4 {[%emt 0:00:11]} Bc8 {[%emt 0:00:14]} 38. Ka2 {[%emt 0:00:10]} Bd7 {[%emt 0:01:41]} 39. Qg2 {[%emt 0:01:09]} Nb2 {[%emt 0:02:01]} 40. Be2 {[%emt 0:00:00]} N2a4 {[%emt 0:00:00]} 41. Nh2 {[%emt 0:02:23]} Nc4 {[%emt 0:09:13]} 42. Ng4 {[%emt 0:01:10]} Bxg5 {[%emt 0:00:24]} 43. Bxg5 {[%emt 0:00:16]} Nab2 {[%emt 0:00:30]} 44. Bc1 {[%emt 0:00:30]} Nb6 {[%emt 0:08:15]} 1-0